fUSD/lending_fUSD_20250519
["ID","MTS","AMOUNT","RATE_DAILY","PERIOD"]
[361593679,1747628378581,-400.0,0.00013808,2]
[361593680,1747628378609,-661.09,0.00013808,2]
[361593681,1747628378635,-578.0,0.00013808,2]
[361593682,1747628378660,-400.0,0.00013808,2]
[361593683,1747628378685,-400.0,0.00013808,2]
[361593684,1747628378710,-452.66,0.00013808,2]
[361593685,1747628378735,-400.0,0.00013808,2]
[361593686,1747628378761,-656.9,0.00013808,2]
[361593687,1747628378790,-882.95,0.00013808,2]
[361593688,1747628378816,-400.0,0.00013808,2]
[361593689,1747628378841,-824.44,0.00013808,2]
[361593690,1747628378867,-400.0,0.00013808,2]
[361593691,1747628378894,-477.83,0.00013808,2]
[361593692,1747628378923,-446.45,0.00013808,2]
[361593693,1747628378947,-400.0,0.00013808,2]
[361593694,1747628378971,-400.0,0.00013808,2]
[361593695,1747628379002,-1004.01,0.00013808,2]
[361593696,1747628379029,-1791.78,0.00013808,2]
[361593697,1747628379055,-427.62,0.00013808,2]
[361593698,1747628379080,-400.0,0.00013808,2]
[361593699,1747628379106,-520.08,0.00013808,2]
[361593700,1747628379135,-400.0,0.00013808,2]
[361593701,1747628379164,-400.0,0.00013808,2]
[361593702,1747628379192,-400.0,0.00013808,2]
[361593703,1747628379221,-400.0,0.00013808,2]
[361593704,1747628379250,-400.0,0.00013808,2]
[361593705,1747628379277,-406.5916037,0.00013808,2]
[361593706,1747628379303,-637.68,0.00013808,2]
[361593707,1747628379329,-1082.17,0.00013808,2]
[361593708,1747628379355,-1126.85,0.00013808,2]
[361593709,1747628379381,-461.35701591,0.00013808,2]
[361593710,1747628379407,-1318.69,0.00013808,2]
[361593711,1747628379433,-982.15,0.00013808,2]
[361593712,1747628379459,-400.0,0.00013808,2]
[361593713,1747628379486,-400.0,0.00013808,2]
[361593714,1747628379519,-400.0,0.00013808,2]
[361593715,1747628379545,-499.66,0.00013808,2]
[361593716,1747628379572,-400.60475561,0.00013808,2]
[361593717,1747628379607,-800.14,0.00013808,2]
[361593718,1747628379641,-400.0,0.00013808,2]
[361593719,1747628379667,-400.0,0.00013808,2]
[361593720,1747628379695,-612.25,0.00013808,2]
[361593721,1747628379720,-400.0,0.00013808,2]
[361593722,1747628379745,-400.0,0.00013808,2]
[361593723,1747628379771,-400.0,0.00013808,2]
[361593724,1747628379796,-856.09,0.00013808,2]
[361593725,1747628379821,-729.15,0.00013808,2]
[361593726,1747628379847,-897.49,0.00013808,2]
[361593727,1747628379871,-400.66331548,0.00013808,2]
[361593728,1747628379895,-549.56,0.00013808,2]
[361593729,1747628379920,-400.0,0.00013808,2]
[361593730,1747628379945,-400.0,0.00013808,2]
[361593731,1747628379969,-400.0,0.00013808,2]
[361593732,1747628379994,-400.0,0.00013808,2]
[361593733,1747628380018,-859.43,0.00013808,2]
[361593734,1747628380042,-295.61913072,0.00013808,2]
[361593735,1747628380066,-959.63,0.00013808,2]
[361593736,1747628380091,-400.0,0.00013808,2]
[361593737,1747628380115,-400.0,0.00013808,2]
[361593738,1747628380155,-400.0,0.00013808,2]
[361593739,1747628380182,-400.0,0.00013808,2]
[361593740,1747628380209,-400.0,0.00013808,2]
[361593741,1747628380239,-1240.15,0.00013808,2]
[361593742,1747628380266,-403.29545572,0.00013808,2]
[361593743,1747628380293,-401.23167133,0.00013808,2]
[361593744,1747628380320,-910.216037,0.00013808,2]
[361593745,1747628380348,-516.27,0.00013808,2]
[361593746,1747628380373,-400.0,0.00013808,2]
[361593747,1747628380400,-400.0,0.00013808,2]
[361593748,1747628380427,-400.0,0.00013808,2]
[361593749,1747628380453,-659.56,0.00013808,2]
[361593750,1747628380478,-400.0,0.00013808,2]
[361593751,1747628380504,-400.0,0.00013808,2]
[361593752,1747628380530,-400.0,0.00013808,2]
[361593753,1747628380556,-400.0,0.00013808,2]
[361593754,1747628380581,-514.14,0.00013808,2]
[361593755,1747628380611,-400.0,0.00013808,2]
[361593756,1747628380641,-400.0,0.00013808,2]
[361593757,1747628380669,-400.81144325,0.00013808,2]
[361593758,1747628380697,-638.84,0.00013808,2]
[361593759,1747628380725,-486.9,0.00013808,2]
[361593760,1747628380750,-481.08457412,0.00013808,2]
[361593761,1747628380775,-400.0,0.00013808,2]
[361593762,1747628381142,-794.81,0.00013808,2]
[361593763,1747628381170,-410.46,0.00013808,2]
[361593764,1747628381196,-174.16620664,0.00013808,2]
[361593765,1747628381222,-400.0,0.00013808,2]
[361593766,1747628381246,-407.1085854,0.00013808,2]
[361593767,1747628381271,-839.3,0.00013808,2]
[361593768,1747628381296,-400.0,0.00013808,2]
[361593769,1747628381322,-400.0,0.00013808,2]
[361593770,1747628381347,-202.83824788,0.00013808,2]
[361593771,1747628381373,-957.46,0.00013808,2]
[361593772,1747628381396,-400.0,0.00013808,2]
[361593773,1747628381421,-666.94,0.00013808,2]
[361593774,1747628381446,-3077.814234,0.00013808,2]
[361593775,1747628381470,-564.92,0.00013808,2]
[361593776,1747628381495,-400.0,0.00013808,2]
[361593777,1747628381519,-1411.62,0.00013808,2]
[361593778,1747628381543,-1062.535303,0.00013808,2]
[361593779,1747628381568,-739.85,0.00013808,2]
[361593780,1747628381592,-824.65,0.00013808,2]
[361593781,1747628381618,-413.88,0.00013808,2]
[361593782,1747628381642,-835.29,0.00013808,2]
[361593783,1747628381666,-448.53,0.00013808,2]
[361593784,1747628381691,-513.99974697,0.00013808,2]
[361593785,1747628383264,529.92,0.00010983,2]
[361593786,1747628386743,200.0,0.000137,5]
[361593787,1747628387355,200.0,0.000138,5]
[361593788,1747628388005,200.0,0.000139,5]
[361593789,1747628581716,490.90460565,0.00027397,120]
[361593790,1747628754804,195.80475344,6.94e-05,2]
[361593791,1747628754826,2839.63946735,6.94e-05,2]
[361593792,1747628754847,1692.61839307,6.94e-05,2]
[361593793,1747628762694,1147.02107428,8e-05,2]
[361593794,1747628762717,591.31612324,8e-05,2]
[361593795,1747628831123,-202.0,0.00012415,2]
[361593796,1747628831145,-250.0,0.00012438,2]
[361593797,1747628831167,-165.5,0.00012447,2]
[361593798,1747628831199,-151.56858069,0.00012485,2]
[361593799,1747628831220,-150.0,0.00012524,2]
[361593800,1747628831242,-1076.92888803,0.00012525,2]
[361593801,1747628838094,-245.14813991,0.00012485,2]
[361593804,1747628959352,-463.84123351,0.00012485,2]
[361593805,1747628959373,-667.86200286,0.00012485,2]
[361593806,1747628971089,-41.12737056,0.00012485,2]
[361593807,1747628971110,-200.0,0.00012493,2]
[361593808,1747628971131,-786.76144444,0.00012501,2]
[361593818,1747629032130,-174.21003561,0.00012485,2]
[361593819,1747629032142,-213.23855556,0.00012501,2]
[361593820,1747629032151,-200.0,0.0001251,2]
[361593821,1747629032159,-157.05659129,0.00012519,2]
[361593822,1747629032176,-135.29340871,0.00012519,2]
[361593823,1747629032185,-200.0,0.00012525,2]
[361593824,1747629032194,-22.25111197,0.00012525,2]
[361593825,1747629032202,-160.16050823,0.00012578,2]
[361593827,1747629032213,-33.60949177,0.00012578,2]
[361593828,1747629032222,-300.0,0.00012584,2]
[361593830,1747629032231,-1200.0,0.00012584,2]
[361593833,1747629032240,-300.0,0.00012584,2]
[361593835,1747629032249,-18454.550141,0.00012585,2]
[361593837,1747629032260,-5445.449859,0.00012585,2]
[361593839,1747629032269,-499.44839878,0.00012653,2]
[361593841,1747629032279,-276.65889505,0.00012653,2]
[361593843,1747629032291,-322.60270617,0.00012653,2]
[361593845,1747629032299,-196.96,0.00012722,2]
[361593847,1747629032308,-58.52519143,0.00012779,2]
[361593849,1747629032319,-110.30480857,0.00012779,2]
[361593850,1747629032328,-1494.6304971,0.0001278,2]
[361593851,1747629032341,-480.8095029,0.0001278,2]
[361593852,1747629032350,-196.96,0.00012785,2]
[361593853,1747629032359,-138.24869071,0.00012989,2]
[361593854,1747629032383,-35.96134489,0.00012989,2]
[361593855,1747629032393,-529.92,0.00013247,2]
[361593856,1747629032402,-150.0,0.00013278,2]
[361593857,1747629032413,-133.13487597,0.00013341,2]
[361593858,1747629032425,-1045.98129752,0.00013341,2]
[361593859,1747629032454,-399.48382651,0.00013341,2]
[361593860,1747629032463,-5941.91865315,0.00013368,2]
[361593861,1747629032472,-201.45,0.00013478,2]
[361593862,1747629032481,-1155.86,0.00013478,2]
[361593863,1747629032490,-150.0,0.00013478,2]
[361593864,1747629032499,-150.0,0.00013478,2]
[361593865,1747629032508,-150.0,0.00013478,2]
[361593866,1747629032517,-207.4,0.00013492,2]
[361593867,1747629032526,-4070.2208,0.00013494,2]
[361593868,1747629032535,-1045.5411,0.00013495,2]
[361593869,1747629032544,-1330.54530635,0.00013498,2]
[361593870,1747629032553,-637.1203615,0.00013498,2]
[361593871,1747629032562,-2916.13,0.000135,2]
[361593872,1747629032571,-712.73672032,0.00013501,2]
[361593873,1747629032580,-150.0,0.00013542,2]
[361593874,1747629032589,-1330.54530626,0.00013543,2]
[361593875,1747629032598,-1129.80145976,0.00013586,2]
[361593876,1747629032607,-1330.54530626,0.00013587,2]
[361593877,1747629032616,-20713.0,0.00013598,2]
[361593878,1747629032625,-438.63678132,0.00013598,2]
[361593879,1747629032634,-161.08558054,0.00013598,2]
[361593880,1747629032646,-156.60550884,0.00013598,2]
[361593881,1747629032655,-252.6085357,0.00013598,2]
[361593882,1747629032664,-14325.0476,0.00013598,2]
[361593883,1747629032673,-44854.0282875,0.00013598,2]
[361593884,1747629032691,-1035.3666,0.00013598,2]
[361593885,1747629032701,-1034.8338,0.00013598,2]
[361593894,1747629040215,-1695.56906898,0.00013598,2]
[361593895,1747629040228,-521.21281847,0.00013598,2]
[361593896,1747629040241,-7104.30730179,0.00013598,2]
[361593897,1747629042537,-174.2100356,0.00013493,2]
[361593898,1747629042547,-500.0,0.00013592,2]
[361593899,1747629042557,-500.0,0.00013592,2]
[361593900,1747629042567,-456.7899644,0.00013592,2]
[361593902,1747629042591,-43.2100356,0.00013592,2]
[361593903,1747629042600,-500.0,0.00013592,2]
[361593904,1747629042610,-326.58056802,0.00013592,2]
[361593905,1747629042628,-173.41943198,0.00013592,2]
[361593907,1747629042638,-500.0,0.00013592,2]
[361593908,1747629042648,-223.33600496,0.00013592,2]
[361593909,1747629042664,-276.66399504,0.00013592,2]
[361593911,1747629042674,-500.0,0.00013592,2]
[361593913,1747629042683,-500.0,0.00013592,2]
[361593915,1747629042693,-369.67886968,0.00013592,2]
[361593918,1747629042702,-500.0,0.00013592,2]
[361593920,1747629042712,-500.0,0.00013592,2]
[361593922,1747629042722,-500.0,0.00013592,2]
[361593924,1747629042731,-500.0,0.00013592,2]
[361593926,1747629042741,-500.0,0.00013592,2]
[361593928,1747629042751,-500.0,0.00013592,2]
[361593931,1747629042761,-500.0,0.00013592,2]
[361593933,1747629042772,-500.0,0.00013592,2]
[361593935,1747629042782,-500.0,0.00013592,2]
[361593937,1747629042792,-500.0,0.00013592,2]
[361593939,1747629042802,-500.0,0.00013592,2]
[361593941,1747629042812,-500.0,0.00013592,2]
[361593942,1747629042822,-500.0,0.00013592,2]
[361593943,1747629042832,-500.0,0.00013592,2]
[361593944,1747629042841,-500.0,0.00013592,2]
[361593945,1747629042851,-500.0,0.00013592,2]
[361593946,1747629042861,-500.0,0.00013592,2]
[361593947,1747629042870,-500.0,0.00013592,2]
[361593948,1747629042880,-500.0,0.00013592,2]
[361593949,1747629042889,-500.0,0.00013592,2]
[361593950,1747629042900,-227.83463528,0.00013592,2]
[361593951,1747629042913,-272.16536472,0.00013592,2]
[361593952,1747629042922,-500.0,0.00013592,2]
[361593953,1747629042932,-500.0,0.00013592,2]
[361593954,1747629042941,-500.0,0.00013592,2]
[361593955,1747629042950,-294.03463528,0.00013592,2]
[361593956,1747629042963,-205.96536472,0.00013592,2]
[361593957,1747629042972,-500.0,0.00013592,2]
[361593958,1747629042982,-500.0,0.00013592,2]
[361593959,1747629042992,-500.0,0.00013592,2]
[361593960,1747629043001,-500.0,0.00013592,2]
[361593961,1747629043011,-9192.41424518,0.00013598,2]
[361593962,1747629043023,-327.26498301,0.00013598,2]
[361593963,1747629043035,-3623.60042211,0.00013598,2]
[361593964,1747629043047,-692.74999987,0.00013598,2]
[361593965,1747629043057,-1070.70831661,0.00013598,2]
[361593966,1747629043077,-575.44595638,0.00013598,2]
[361593967,1747629043088,-1899.7533001,0.00013598,2]
[361593968,1747629043097,-1314.3918,0.00013598,2]
[361593969,1747629043107,-500.0,0.00013598,2]
[361593970,1747629043116,-1000.0,0.00013598,2]
[361593971,1747629043126,-5000.0,0.00013598,2]
[361593972,1747629043135,-756.6879,0.00013598,2]
[361593973,1747629043144,-171.31219305,0.00013632,2]
[361593974,1747629043160,-267.32458827,0.00013632,2]
[361593975,1747629043170,-1075.36541173,0.00013632,2]
[361593977,1747629043612,-255.17989453,0.00013632,2]
[361593978,1747629043622,-252.60853569,0.00013653,2]
[361593979,1747629043632,-15.12345433,0.00013657,2]
[361593980,1747629043688,-184.87654567,0.00013657,2]
[361593981,1747629043699,-438.63678132,0.00013665,2]
[361593982,1747629043710,-1007.0,0.0001367,2]
[361593983,1747629043720,-1004.0,0.0001367,2]
[361593984,1747629043731,-161.08558051,0.00013674,2]
[361593985,1747629043742,-1330.54530626,0.00013677,2]
[361593986,1747629043752,-258.78074474,0.00013679,2]
[361593987,1747629043765,-155.0,0.0001369,2]
[361593988,1747629043776,-615.05119014,0.0001369,2]
[361593989,1747629043786,-668.65185757,0.0001369,2]
[361593990,1747629043796,-668.65185757,0.0001369,2]
[361593991,1747629043805,-151.0,0.0001369,2]
[361593992,1747629043815,-208.722675,0.00013697,2]
[361593993,1747629043826,-199.14694134,0.00013697,2]
[361593994,1747629043837,-195.10741768,0.00013697,2]
[361593995,1747629043847,-400.0,0.00013698,2]
[361593996,1747629043857,-400.0,0.00013698,2]
[361593997,1747629043866,-400.0,0.00013698,2]
[361593998,1747629043876,-400.0,0.00013698,2]
[361593999,1747629043886,-400.0,0.00013698,2]
[361594000,1747629043895,-400.0,0.00013698,2]
[361594001,1747629043906,-400.0,0.00013698,2]
[361594002,1747629043915,-419.55705749,0.00013698,2]
[361594003,1747629043925,-509.12401241,0.00013698,2]
[361594004,1747629043935,-450.0,0.00013698,2]
[361594005,1747629043945,-400.0,0.00013698,2]
[361594006,1747629043954,-400.0,0.00013698,2]
[361594007,1747629043964,-400.0,0.00013698,2]
[361594008,1747629043974,-400.0,0.00013698,2]
[361594009,1747629043984,-400.0,0.00013698,2]
[361594010,1747629043994,-400.0,0.00013698,2]
[361594011,1747629044005,-400.0,0.00013698,2]
[361594012,1747629044014,-450.0,0.00013698,2]
[361594013,1747629044024,-400.0,0.00013698,2]
[361594014,1747629044034,-400.0,0.00013698,2]
[361594015,1747629044043,-400.0,0.00013698,2]
[361594016,1747629044053,-404.55882592,0.00013698,2]
[361594017,1747629044062,-400.0,0.00013698,2]
[361594018,1747629044071,-400.0,0.00013698,2]
[361594019,1747629044081,-400.0,0.00013698,2]
[361594020,1747629044091,-400.0,0.00013698,2]
[361594021,1747629044100,-400.0,0.00013698,2]
[361594022,1747629044110,-503.83,0.00013698,2]
[361594023,1747629044119,-400.0,0.00013698,2]
[361594024,1747629044129,-753.27,0.00013698,2]
[361594025,1747629044138,-514.82,0.00013698,2]
[361594026,1747629044147,-400.0,0.00013698,2]
[361594027,1747629044162,-400.0,0.00013698,2]
[361594028,1747629044171,-426.73,0.00013698,2]
[361594029,1747629044180,-430.06777602,0.00013698,2]
[361594030,1747629044189,-400.0,0.00013698,2]
[361594031,1747629044199,-400.0,0.00013698,2]
[361594032,1747629044208,-476.80998373,0.00013698,2]
[361594033,1747629044217,-450.34,0.00013698,2]
[361594034,1747629044228,-400.0,0.00013698,2]
[361594035,1747629044237,-400.0,0.00013698,2]
[361594036,1747629044247,-443.08900334,0.00013698,2]
[361594037,1747629044256,-400.0,0.00013698,2]
[361594038,1747629044265,-400.0,0.00013698,2]
[361594039,1747629044275,-352.03425991,0.00013698,2]
[361594040,1747629044284,-400.0,0.00013698,2]
[361594041,1747629044294,-400.0,0.00013698,2]
[361594042,1747629044304,-400.0,0.00013698,2]
[361594043,1747629044314,-652.8,0.00013698,2]
[361594044,1747629044323,-514.88,0.00013698,2]
[361594045,1747629044333,-400.0,0.00013698,2]
[361594046,1747629044345,-400.0,0.00013698,2]
[361594047,1747629044356,-529.88,0.00013698,2]
[361594048,1747629044366,-400.0,0.00013698,2]
[361594049,1747629044374,-400.0,0.00013698,2]
[361594050,1747629044383,-2386.91,0.00013698,2]
[361594051,1747629044392,-400.0,0.00013698,2]
[361594052,1747629044403,-400.0,0.00013698,2]
[361594053,1747629044412,-761.05,0.00013698,2]
[361594054,1747629044421,-400.0,0.00013698,2]
[361594055,1747629044430,-400.0,0.00013698,2]
[361594056,1747629044439,-579.59,0.00013698,2]
[361594057,1747629044448,-400.0,0.00013698,2]
[361594058,1747629044458,-400.0,0.00013698,2]
[361594059,1747629044468,-400.0,0.00013698,2]
[361594060,1747629044478,-400.0,0.00013698,2]
[361594061,1747629044489,-400.0,0.00013698,2]
[361594062,1747629044499,-400.0,0.00013698,2]
[361594063,1747629044510,-400.0,0.00013698,2]
[361594064,1747629044519,-1007.94,0.00013698,2]
[361594065,1747629044528,-423.86,0.00013698,2]
[361594066,1747629044537,-401.07603346,0.00013698,2]
[361594067,1747629044546,-400.0,0.00013698,2]
[361594068,1747629044555,-685.5,0.00013698,2]
[361594069,1747629044565,-400.0,0.00013698,2]
[361594070,1747629044574,-1000.0,0.00013698,2]
[361594071,1747629044583,-478.62,0.00013698,2]
[361594072,1747629044592,-400.0,0.00013698,2]
[361594073,1747629044601,-400.0,0.00013698,2]
[361594074,1747629044610,-400.0,0.00013698,2]
[361594075,1747629044619,-400.0,0.00013698,2]
[361594076,1747629044628,-400.0,0.00013698,2]
[361594077,1747629044638,-400.0,0.00013698,2]
[361594078,1747629044647,-400.0,0.00013698,2]
[361594079,1747629044659,-400.0,0.00013698,2]
[361594080,1747629044668,-566.91,0.00013698,2]
[361594081,1747629044677,-400.0,0.00013698,2]
[361594082,1747629044686,-536.59,0.00013698,2]
[361594083,1747629044695,-400.0,0.00013698,2]
[361594084,1747629044704,-400.0,0.00013698,2]
[361594085,1747629044713,-390.0,0.00013698,2]
[361594086,1747629044722,-400.0,0.00013698,2]
[361594087,1747629044731,-400.0,0.00013698,2]
[361594088,1747629044740,-489.13473753,0.00013698,2]
[361594089,1747629044750,-684.26,0.00013698,2]
[361594090,1747629044759,-485.66,0.00013698,2]
[361594091,1747629044768,-654.02,0.00013698,2]
[361594092,1747629044777,-400.0,0.00013698,2]
[361594093,1747629044788,-400.0,0.00013698,2]
[361594094,1747629044797,-400.0,0.00013698,2]
[361594095,1747629044806,-400.0,0.00013698,2]
[361594096,1747629044816,-403.27774162,0.00013698,2]
[361594097,1747629044825,-513.49,0.00013698,2]
[361594098,1747629044835,-400.0,0.00013698,2]
[361594099,1747629044844,-400.0,0.00013698,2]
[361594100,1747629044852,-400.0,0.00013698,2]
[361594101,1747629044861,-467.19,0.00013698,2]
[361594102,1747629044870,-400.0,0.00013698,2]
[361594103,1747629044879,-400.0,0.00013698,2]
[361594104,1747629044888,-400.0,0.00013698,2]
[361594105,1747629044897,-400.0,0.00013698,2]
[361594106,1747629044908,-400.0,0.00013698,2]
[361594107,1747629044916,-400.0,0.00013698,2]
[361594108,1747629044925,-400.0,0.00013698,2]
[361594109,1747629044934,-400.0,0.00013698,2]
[361594110,1747629044944,-400.0,0.00013698,2]
[361594111,1747629044952,-400.0,0.00013698,2]
[361594112,1747629044961,-400.0,0.00013698,2]
[361594113,1747629044970,-506.27,0.00013698,2]
[361594114,1747629044980,-558.06,0.00013698,2]
[361594115,1747629044990,-400.0,0.00013698,2]
[361594116,1747629045001,-1166.94,0.00013698,2]
[361594117,1747629045011,-400.0,0.00013698,2]
[361594118,1747629045020,-400.0,0.00013698,2]
[361594119,1747629045030,-400.0,0.00013698,2]
[361594120,1747629045041,-478.13552802,0.00013698,2]
[361594121,1747629045051,-400.0,0.00013698,2]
[361594122,1747629045061,-400.0,0.00013698,2]
[361594123,1747629045070,-880.75,0.00013698,2]
[361594124,1747629045079,-419.15,0.00013698,2]
[361594125,1747629045089,-566.96,0.00013698,2]
[361594126,1747629045098,-487.45,0.00013698,2]
[361594127,1747629045108,-504.52907355,0.00013698,2]
[361594128,1747629045117,-510.79,0.00013698,2]
[361594129,1747629045126,-400.0,0.00013698,2]
[361594130,1747629045135,-400.0,0.00013698,2]
[361594131,1747629045145,-400.0,0.00013698,2]
[361594132,1747629045157,-400.0,0.00013698,2]
[361594133,1747629045166,-562.01,0.00013698,2]
[361594134,1747629045174,-400.0,0.00013698,2]
[361594135,1747629045183,-400.0,0.00013698,2]
[361594136,1747629045193,-723.95,0.00013698,2]
[361594137,1747629045202,-595.67,0.00013698,2]
[361594138,1747629045211,-400.0,0.00013698,2]
[361594139,1747629045220,-400.0,0.00013698,2]
[361594140,1747629045230,-400.0,0.00013698,2]
[361594141,1747629045238,-400.0,0.00013698,2]
[361594142,1747629045248,-400.0,0.00013698,2]
[361594143,1747629045257,-400.0,0.00013698,2]
[361594144,1747629045266,-438.35,0.00013698,2]
[361594145,1747629045276,-400.0,0.00013698,2]
[361594146,1747629045284,-1166.47,0.00013698,2]
[361594147,1747629045293,-406.21417887,0.00013698,2]
[361594148,1747629045302,-667.65,0.00013698,2]
[361594149,1747629045311,-417.63,0.00013698,2]
[361594150,1747629045320,-400.0,0.00013698,2]
[361594151,1747629045329,-400.0,0.00013698,2]
[361594152,1747629045340,-438.01,0.00013698,2]
[361594153,1747629045351,-687.85,0.00013698,2]
[361594154,1747629045360,-408.42842385,0.00013698,2]
[361594155,1747629045369,-636.01,0.00013698,2]
[361594156,1747629045378,-400.0,0.00013698,2]
[361594157,1747629045388,-649.15,0.00013698,2]
[361594158,1747629045397,-572.71,0.00013698,2]
[361594159,1747629045409,-365.8027929,0.00013698,2]
[361594160,1747629045418,-437.8,0.00013698,2]
[361594161,1747629045427,-409.68,0.00013698,2]
[361594162,1747629045437,-400.0,0.00013698,2]
[361594163,1747629045447,-785.14,0.00013698,2]
[361594164,1747629045456,-400.0,0.00013698,2]
[361594165,1747629045465,-400.0,0.00013698,2]
[361594166,1747629045474,-400.0,0.00013698,2]
[361594168,1747629045485,-416.66,0.00013698,2]
[361594169,1747629045495,-633.75,0.00013698,2]
[361594170,1747629045505,-400.0,0.00013698,2]
[361594171,1747629045514,-400.0,0.00013698,2]
[361594172,1747629045523,-400.0,0.00013698,2]
[361594173,1747629045533,-400.0,0.00013698,2]
[361594174,1747629045542,-400.0,0.00013698,2]
[361594175,1747629045552,-400.0,0.00013698,2]
[361594176,1747629045562,-400.0,0.00013698,2]
[361594177,1747629045572,-1040.64,0.00013698,2]
[361594178,1747629045581,-608.56,0.00013698,2]
[361594179,1747629045590,-400.0,0.00013698,2]
[361594180,1747629045600,-942.1,0.00013698,2]
[361594181,1747629045609,-408.08212494,0.00013698,2]
[361594182,1747629045618,-400.0,0.00013698,2]
[361594183,1747629045629,-400.0,0.00013698,2]
[361594184,1747629045639,-937.01,0.00013698,2]
[361594185,1747629045648,-521.01,0.00013698,2]
[361594186,1747629045659,-487.63,0.00013698,2]
[361594187,1747629045668,-405.30858522,0.00013698,2]
[361594188,1747629045678,-2833.948635,0.00013698,2]
[361594189,1747629045687,-400.0,0.00013698,2]
[361594190,1747629045696,-400.0,0.00013698,2]
[361594191,1747629045705,-973.990694,0.00013698,2]
[361594192,1747629045714,-497.46,0.00013698,2]
[361594193,1747629045723,-400.0,0.00013698,2]
[361594194,1747629045732,-400.0,0.00013698,2]
[361594195,1747629045741,-501.74,0.00013698,2]
[361594196,1747629045750,-400.0,0.00013698,2]
[361594197,1747629045759,-426.35,0.00013698,2]
[361594198,1747629045768,-903.71,0.00013698,2]
[361594199,1747629045778,-461.89,0.00013698,2]
[361594200,1747629045787,-400.0,0.00013698,2]
[361594201,1747629045796,-400.0,0.00013698,2]
[361594202,1747629045806,-1208.8,0.00013698,2]
[361594203,1747629045816,-849.25,0.00013698,2]
[361594204,1747629045825,-400.0,0.00013698,2]
[361594205,1747629045834,-400.0,0.00013698,2]
[361594206,1747629045844,-1088.59,0.00013698,2]
[361594207,1747629045853,-400.0,0.00013698,2]
[361594208,1747629045862,-400.0,0.00013698,2]
[361594209,1747629045871,-427.06,0.00013698,2]
[361594210,1747629045881,-1190.51,0.00013698,2]
[361594211,1747629045891,-401.61153516,0.00013698,2]
[361594212,1747629045901,-873.007037,0.00013698,2]
[361594213,1747629045910,-400.0,0.00013698,2]
[361594214,1747629045919,-754.69,0.00013698,2]
[361594215,1747629045929,-400.0,0.00013698,2]
[361594216,1747629045938,-400.0,0.00013698,2]
[361594217,1747629045947,-400.0,0.00013698,2]
[361594218,1747629045955,-400.0,0.00013698,2]
[361594219,1747629045965,-400.0,0.00013698,2]
[361594220,1747629045973,-400.0,0.00013698,2]
[361594221,1747629045982,-400.0,0.00013698,2]
[361594222,1747629045991,-400.0,0.00013698,2]
[361594223,1747629046000,-1726.97,0.00013698,2]
[361594224,1747629046009,-561.23,0.00013698,2]
[361594225,1747629046018,-407.91409517,0.00013698,2]
[361594226,1747629046027,-400.0,0.00013698,2]
[361594227,1747629046035,-400.0,0.00013698,2]
[361594228,1747629046044,-564.17,0.00013698,2]
[361594229,1747629046053,-400.0,0.00013698,2]
[361594230,1747629046062,-441.77,0.00013698,2]